Cogmind - Beta 10.2 @@@ ROGUE MODE // 2021.07.01 @ 19:12:34 Player: HabNab Result: Destroyed by S-27 Virus with Autogun Performance ------------- Evolutions (5) 2500 Regions Visited (10) 2000 Robots Destroyed (79) 395 Value Destroyed (3288) 3288 Prototype IDs (14) 280 Alien Tech Used (0) 0 Bonus (991) 991 TOTAL SCORE: 9454 Bonus ------- High Alert Combat Kills 28 Follower Combat Kills 1123 Friendly Fire -160 Cogmind --------- Core Integrity 0/1000 Matter 290/300 Energy 80/100 System Corruption 6% Temperature Cool (0) Movement Flying (40) Location -5/Factory Parts ------- > --- POWER (2) -------- (None) > --- PROPULSION (4) --- Field Propulsion Drive > --- UTILITY (8) ------ Advanced Signal Interpreter Hacking Suite > --- WEAPON (3) ------- (None) > --- INVENTORY (4) ---- Micro Fission Core Carbon-fiber Leg Improved Heat Sink Shield Generator Peak State ------------ > --- POWER ------------ Improved Deuterium Engine Light Fission Core > --- PROPULSION ------- Centrium Heavy Treads Improved Titanium Leg > --- UTILITY ---------- Advanced Heat Sink Large Storage Unit Improved Sensor Array Advanced Signal Interpreter Core Analyzer Centrium Medium Armor Plating Hacking Suite > --- WEAPON ----------- High-powered Shock Rifle High-powered Shock Rifle High-powered Shock Rifle > --- INVENTORY -------- Improved Deuterium Engine Carbon-fiber Leg Carbon-fiber Leg Armored Leg Armored Leg Improved Heat Sink High-powered Shock Rifle High-powered Shock Rifle Force Rifle Heavy Beamcaster [Rating: 77] Favorites ----------- Power Improved Deuterium Engine Engine Improved Deuterium Engine Power Core Light Nuclear Core Propulsion Armored Leg Treads Centrium Heavy Treads Leg Armored Leg Wheel Compact Wheel Utility Large Storage Unit Device Advanced Heat Sink Storage Large Storage Unit Processor Advanced Signal Interpreter Hackware Hacking Suite Protection Improved Light Armor Plating Weapon Shock Rifle Energy Gun Shock Rifle Ballistic Gun Light Assault Rifle Special Weapon Welding Torch Build | -11 -10 -9 -8 -7 -6 -6 -6 -6 -6 -5 ------- Run | Scr Mat Mat Mat Fac Fac Ext Cet Arc Hub Fac Slots Evolved 10 | . . 2 2 2 2 . . . . 2 Power 1 | . . . . 1 . . . . . . Propulsion 2 | . . . 1 . . . . . . 1 Utility 6 | . . 2 . 1 2 . . . . 1 Weapon 1 | . . . 1 . . . . . . . Parts Attached 120 | 6 9 10 8 14 17 16 12 3 16 9 Power 18 | 1 2 1 1 4 3 2 1 1 2 . Engine 10 | 1 2 1 . 1 1 1 1 1 1 . Core 8 | . . . 1 3 2 1 . . 1 . Reactor . | . . . . . . . . . . . Propulsion 25 | 2 2 2 1 2 4 3 5 . 2 2 Treads 1 | . . . . . . . 1 . . . Leg 21 | . 2 2 1 2 4 3 4 . 2 1 Wheel 2 | 2 . . . . . . . . . . Hover . | . . . . . . . . . . . Flight 1 | . . . . . . . . . . 1 Utility 35 | 1 2 4 2 6 6 4 1 1 5 3 Device 18 | . . 3 . 3 2 3 . 1 4 2 Storage 2 | 1 1 . . . . . . . . . Processor 6 | . 1 1 2 1 1 . . . . . Hackware 1 | . . . . . 1 . . . . . Protection 8 | . . . . 2 2 1 1 . 1 1 Artifact . | . . . . . . . . . . . Weapon 42 | 2 3 3 4 2 4 7 5 1 7 4 Energy Gun 36 | 2 1 3 4 2 4 6 4 1 7 2 Energy Cannon . | . . . . . . . . . . . Ballistic Gun 5 | . 1 . . . . 1 1 . . 2 Ballistic Cannon . | . . . . . . . . . . . Launcher . | . . . . . . . . . . . Special Weapon 1 | . 1 . . . . . . . . . Impact Weapon . | . . . . . . . . . . . Slashing Weapon . | . . . . . . . . . . . Piercing Weapon . | . . . . . . . . . . . Special Melee Weapon . | . . . . . . . . . . . Unidentified Prototypes 5 | . . . 1 . . . 4 . . . Parts Lost 34 | . 2 . 3 2 3 5 1 . 8 10 Power 4 | . . . . . . 2 1 . 1 . Propulsion 4 | . 1 . . . 1 . . . . 2 Utility 8 | . . . . 1 2 1 . . . 4 Weapon 18 | . 1 . 3 1 . 2 . . 7 4 Highest Loss Streak 8 | . 2 . 2 1 3 4 1 . 7 8 Average Slot Usage (%) 97 | . 93 100 100 99 98 98 99 100 99 81 Engine 8 | . 14 11 8 7 6 5 6 12 9 4 Core 3 | . . . . 6 5 6 6 . 3 4 Leg 20 | . 12 22 27 23 19 20 19 20 20 18 Device 13 | . . 17 18 21 8 12 13 13 13 13 Storage 7 | . 14 11 9 7 6 6 6 6 6 4 Processor 11 | . 10 15 9 7 13 13 13 13 13 10 Hackware 3 | . . . . . 6 6 6 6 6 5 Protection 3 | . . . . 1 8 6 6 6 6 3 Energy Gun 20 | . 19 17 27 23 20 19 20 20 19 10 Ballistic Gun 1 | . 6 4 . . . . . . . 2 Naked Turns . | . . . . . . . . . . . Heaviest Build 59 | 11 25 34 37 52 52 53 57 59 59 54 Greatest Support 62 | 26 26 34 51 57 57 52 52 52 52 62 Greatest Overweight (x) 18 | . 2 1 . . 1 1 18 1 1 1 Average Overweight (x) . | . . . . . . . 1 1 . . Largest Inventory Capacity 12 | 6 12 10 10 10 10 10 10 10 10 10 Average Capacity 9 | 4 8 10 10 10 10 10 10 10 10 8 Most Carried 10 | 2 10 10 10 10 10 10 10 10 10 10 Average Carried 9 | 1 6 9 9 9 9 9 9 9 9 7 Final Capacity 10 | 6 10 10 10 10 10 10 10 10 10 4 Final Carried 10 | 2 10 10 10 10 10 10 10 10 10 4 Class Distribution -------------------- 28% | Scavenger-Skirmisher 23% | Skirmisher 13% | Mutant 10% | Scavenger-Mutant 9% | Scavenger-Gunner 8% | Commander-Gunner 3% | Tank Dominant Class ---------------- Mutant | -10/Materials Mutant | -9/Materials Skirmisher | -8/Materials Skirmisher | -7/Factory Scavenger-Gunner | -6/Factory Commander-Gunner | -6/Extension Scavenger-Skirmisher | -6/Cetus Scavenger-Skirmisher | -6/Archives Scavenger-Skirmisher | -6/Hub_04(d) Scavenger-Skirmisher | -5/Factory Resources | -11 -10 -9 -8 -7 -6 -6 -6 -6 -6 -5 ----------- Run | Scr Mat Mat Mat Fac Fac Ext Cet Arc Hub Fac Matter Collected 1543 | 196 152 121 80 140 125 195 190 20 184 140 Remotely . | . . . . . . . . . . . Salvage Created 4894 | . 300 330 589 588 378 980 355 357 320 697 Parts 228 | . 25 17 36 34 15 34 11 21 14 21 Haulers Intercepted 7 | . 1 2 1 1 1 1 . . . . Recyclers Shooed 3 | . . . . . . 2 . . . 1 Parts Field Recycled . | . . . . . . . . . . . Retrieved Matter . | . . . . . . . . . . . Parts Self-Destructed . | . . . . . . . . . . . Prevented . | . . . . . . . . . . . Kills | -11 -10 -9 -8 -7 -6 -6 -6 -6 -6 -5 ------- Run | Scr Mat Mat Mat Fac Fac Ext Cet Arc Hub Fac Combat Hostiles Destroyed 57 | . 6 2 9 7 4 9 4 4 4 8 Guns 52 | . 6 1 8 7 4 8 2 4 4 8 AOE 3 | . . 1 1 . . 1 . . . . Classes Destroyed 11 | . 2 3 1 . 1 1 . . . 3 Builder 1 | . . . . . . 1 . . . . Hauler 7 | . 1 2 1 1 1 1 . . . . Recycler 6 | . . 1 . 1 . 2 . . . 2 Watcher 7 | . . 3 1 1 . 1 . . 1 . Swarmer 2 | . . . . . . . . . . 2 Grunt 30 | . 6 1 5 4 2 5 2 . 2 3 Brawler 1 | . . . . . . . . . . 1 Duelist 1 | . . . . . 1 . . . . . Sentry 18 | . . 1 3 3 1 4 . 4 2 . Hunter 1 | . . . 1 . . . . . . . Programmer 2 | . . . . . . . . . . 2 Cetus Guard 2 | . . . . . . . 2 . . . Guerrilla 1 | . . . . . . . 1 . . . Best Kill Streak 5 | . 3 2 3 5 1 3 2 1 3 4 Combat Bots Only 5 | . 3 1 3 5 1 3 2 1 3 4 Max Kills in Single Turn 2 | . 1 1 2 1 1 2 1 1 1 1 Gunslinging 1 | . . . 1 . . . . . . . Exploded 1 | . . 1 1 . . 1 . . . . Melee . | . . . . . . . . . . . Uniques/NPCs Destroyed . | . . . . . . . . . . . Combat | -11 -10 -9 -8 -7 -6 -6 -6 -6 -6 -5 -------- Run | Scr Mat Mat Mat Fac Fac Ext Cet Arc Hub Fac Damage Taken 7844 | . 277 77 540 460 591 1208 715 349 1286 2341 Core 1706 | . 35 22 101 53 51 163 88 73 108 1012 Absorbed by Shields 246 | . . . . 117 . 23 106 . . . Core Remaining (%) 82 | 100 86 94 81 92 . . . . 43 . Volleys Fired 228 | . 37 27 20 25 17 37 16 10 14 25 Largest 3 | . 2 2 3 3 3 3 3 3 3 3 Hottest 221 | . 90 100 172 202 204 221 200 221 221 214 Shots Fired 583 | . 65 54 60 75 46 104 48 26 41 64 Gun 583 | . 65 54 60 75 46 104 48 26 41 64 Cannon . | . . . . . . . . . . . Launcher . | . . . . . . . . . . . Special . | . . . . . . . . . . . Kinetic 41 | . 13 11 . . . 3 . . . 14 Thermal 266 | . 29 11 13 51 29 60 9 9 24 31 Explosive . | . . . . . . . . . . . Electromagnetic 276 | . 23 32 47 24 17 41 39 17 17 19 Robot Hit Streak 16 | . 7 8 12 14 16 16 7 9 9 13 Robot Miss Streak 5 | . 3 4 2 3 4 4 4 2 2 5 Penetration Max . | . . . . . . . . . . . Secondary Targets 4 | . . . 1 . . 2 . . . 1 Max Gunslinging Chain 1 | . . . 1 . . 1 . . . 1 Shots Hit Robots 406 | . 39 32 44 55 38 73 35 19 27 44 Core Hits 224 | . 14 10 20 23 23 46 18 14 15 41 Critical Hits 2 | . . . . . . 2 . . . . Critical Kills . | . . . . . . . . . . . Critical Parts Destroyed 1 | . . . . . . 1 . . . . Melee Attacks . | . . . . . . . . . . . Impact . | . . . . . . . . . . . Slashing . | . . . . . . . . . . . Piercing . | . . . . . . . . . . . Sneak Attacks . | . . . . . . . . . . . Combat Hostiles . | . . . . . . . . . . . Follow-up Attacks . | . . . . . . . . . . . Damage Inflicted 8354 | . 469 510 813 905 689 1950 850 468 477 1223 Guns 7778 | . 469 464 762 905 689 1688 850 468 477 1006 Cannons . | . . . . . . . . . . . Explosions 576 | . . 46 51 . . 262 . . . 217 Melee . | . . . . . . . . . . . Ramming . | . . . . . . . . . . . Kinetic 436 | . 51 39 . . . 33 . . . 313 Thermal 4318 | . 201 137 171 630 530 1422 213 227 196 591 Explosive . | . . . . . . . . . . . Electromagnetic 3600 | . 217 334 642 275 159 495 637 241 281 319 Impact . | . . . . . . . . . . . Slashing . | . . . . . . . . . . . Piercing . | . . . . . . . . . . . Highest Corruption 6 | . . . . . . . . . . 6 Average Corruption 3 | . . . . . . . . . . 3 Corruption Purged . | . . . . . . . . . . . Effects 7 | . . . . . . . . . . 7 Heat Flow Errors 2 | . . . . . . . . . . 2 Energy Discharges 2 | . . . . . . . . . . 2 Targeting Errors 3 | . . . . . . . . . . 3 Overload Shots . | . . . . . . . . . . . Overflow Damage 40 | . . . . . . . . . . 40 Projectiles . | . . . . . . . . . . . Explosions 40 | . . . . . . . . . . 40 Melee . | . . . . . . . . . . . Knockbacks . | . . . . . . . . . . . Impact . | . . . . . . . . . . . Kinetic . | . . . . . . . . . . . Secondary . | . . . . . . . . . . . Self-Inflicted Damage 80 | . . 17 42 . . 21 . . . . Shots 3 | . . 1 1 . . 1 . . . . Rammed . | . . . . . . . . . . . Targets Rammed . | . . . . . . . . . . . Kicked . | . . . . . . . . . . . Crushed . | . . . . . . . . . . . Highest Temperature 470 | . 378 1 54 325 346 267 362 270 470 202 Average Temperature 127 | . 137 1 19 120 161 84 196 94 254 45 Received Heat Transfer 1899 | . 150 27 162 189 222 321 219 45 456 108 Effects 11 | . 1 . . . 2 . 2 . 6 . Shutdowns 6 | . 1 . . . . . 1 . 4 . Energy Bleed 1 | . . . . . 1 . . . . . Interference 1 | . . . . . 1 . . . . . Matter Decay 2 | . . . . . . . 1 . 1 . Damage (minor) 1 | . . . . . . . . . 1 . Siege Activations . | . . . . . . . . . . . Robots Corrupted 3 | . . 1 . . . . 2 . . . Combat Hostiles 2 | . . . . . . . 2 . . . Parts Fried 11 | . . 1 3 . 1 . 3 . 3 . Impact Corruptions . | . . . . . . . . . . . Robots Melted . | . . . . . . . . . . . Combat Hostiles . | . . . . . . . . . . . Parts Melted 15 | . . 1 . 3 3 3 . . . 5 Heat Transferred 7474 | . 592 309 222 1172 1145 2337 222 259 359 857 Parts Sabotaged . | . . . . . . . . . . . Parts Stolen . | . . . . . . . . . . . Parts Stripped . | . . . . . . . . . . . Power Chain Reactions 5 | . . 1 1 . . 2 . . . 1 Missiles Intercepted . | . . . . . . . . . . . Alert | -11 -10 -9 -8 -7 -6 -6 -6 -6 -6 -5 ------- Run | Scr Mat Mat Mat Fac Fac Ext Cet Arc Hub Fac Peak Influence 547 | . 162 130 266 235 166 526 547 374 104 340 Initial 294 | . . 68 54 77 41 7 294 218 60 50 Average 162 | . 96 80 134 82 52 247 425 293 59 180 Maximum Alert Level 2 | . . . 1 1 . 2 2 1 . 1 Low Security (%) 69 | 100 100 100 83 91 100 36 . 22 100 62 Level 1 25 | . . . 16 8 . 46 56 77 . 37 Level 2 5 | . . . . . . 17 43 . . . Level 3 . | . . . . . . . . . . . Level 4 . | . . . . . . . . . . . Level 5 . | . . . . . . . . . . . High Security . | . . . . . . . . . . . Max Security . | . . . . . . . . . . . Squads Dispatched 9 | . 2 . 1 1 . . . . 2 3 Investigation 1 | . 1 . . . . . . . . . Extermination 1 | . . . . . . . . . . 1 Reinforcement 7 | . 1 . 1 1 . . . . 2 2 Assault . | . . . . . . . . . . . Garrison . | . . . . . . . . . . . Intercept . | . . . . . . . . . . . Construction Impeded 1 | . . . . . . . . . . 1 Haulers Reinforced 1 | . . . . 1 . . . . . . Stealth | -11 -10 -9 -8 -7 -6 -6 -6 -6 -6 -5 --------- Run | Scr Mat Mat Mat Fac Fac Ext Cet Arc Hub Fac Distress Signals 9 | . 3 1 2 . . 1 1 . . 1 Communications Jammed . | . . . . . . . . . . . Distress Signals . | . . . . . . . . . . . Times Spotted 139 | . 9 8 21 13 6 30 11 6 7 28 Peak Tracking Total 14 | . 4 2 6 5 3 6 6 1 5 14 Tactical Retreats 12 | . 1 1 . . 1 1 2 1 1 4 Traps | -11 -10 -9 -8 -7 -6 -6 -6 -6 -6 -5 ------- Run | Scr Mat Mat Mat Fac Fac Ext Cet Arc Hub Fac Traps Triggered 6 | . . . . 1 . 4 . . 1 . Indirectly . | . . . . . . . . . . . Trap Hack Attempts . | . . . . . . . . . . . Triggered . | . . . . . . . . . . . Disarmed . | . . . . . . . . . . . Reprogrammed . | . . . . . . . . . . . Reused . | . . . . . . . . . . . Traps Extracted . | . . . . . . . . . . . Installed . | . . . . . . . . . . . Triggered . | . . . . . . . . . . . Machines | -11 -10 -9 -8 -7 -6 -6 -6 -6 -6 -5 ---------- Run | Scr Mat Mat Mat Fac Fac Ext Cet Arc Hub Fac Machines Disabled 10 | . . . 1 . 1 4 2 . . 2 Max in Single Turn 2 | . . . 1 . 1 1 1 . . 2 Machines Sabotaged . | . . . . . . . . . . . Garrisons Compromised . | . . . . . . . . . . . Overloaded Fab Kills . | . . . . . . . . . . . Fab Network Shutdowns . | . . . . . . . . . . . Hacking | -11 -10 -9 -8 -7 -6 -6 -6 -6 -6 -5 --------- Run | Scr Mat Mat Mat Fac Fac Ext Cet Arc Hub Fac Machines Accessed 26 | . . 3 3 3 3 9 2 1 1 1 Terminals 21 | . . 3 3 1 2 8 2 . 1 1 Fabricators 1 | . . . . 1 . . . . . . Repair Stations 1 | . . . . 1 . . . . . . Recycling Units 2 | . . . . . 1 1 . . . . Scanalyzers . | . . . . . . . . . . . Garrison Access . | . . . . . . . . . . . Total Hacks 93 | . . 7 11 6 9 19 6 25 8 2 Successful 59 | . . 4 5 4 6 7 2 25 5 1 Failed 34 | . . 3 6 2 3 12 4 . 3 1 Catastrophic 5 | . . 1 . . . 2 1 . . 1 Database Lockouts . | . . . . . . . . . . . Manual 8 | . . . 1 1 1 3 1 1 . . Terminals 58 | . . 7 11 2 5 17 6 . 8 2 Fabricators 2 | . . . . 2 . . . . . . Repair Stations 2 | . . . . 2 . . . . . . Recycling Units 6 | . . . . . 4 2 . . . . Scanalyzers . | . . . . . . . . . . . Garrison Access . | . . . . . . . . . . . Terminal Hacks 51 | . . 4 5 . 3 6 2 25 5 1 Record 30 | . . . . . . . 2 25 2 1 Robot Analysis 1 | . . . . . . . . . 1 . Prototype ID Bank 4 | . . 2 1 . 1 . . . . . Open Door 3 | . . . . . . 3 . . . . Level Access Points 1 | . . . 1 . . . . . . . Branch Access Points 1 | . . . . . . 1 . . . . Terminal Index 1 | . . . 1 . . . . . . . Unreport Threat 3 | . . . . . 2 . . . 1 . Dispatch Records 1 | . . . . . . 1 . . . . Maintenance Status 1 | . . . 1 . . . . . . . Patrol Status 1 | . . 1 . . . . . . . . Zone Layout 4 | . . 1 1 . . 1 . . 1 . Fabricator Hacks 1 | . . . . 1 . . . . . . Network Status 1 | . . . . 1 . . . . . . Repair Station Hacks 2 | . . . . 2 . . . . . . Scan Component 1 | . . . . 1 . . . . . . Repair 1 | . . . . 1 . . . . . . Recycling Unit Hacks 3 | . . . . . 2 1 . . . . Report Inventory 2 | . . . . . 1 1 . . . . Retrieve Matter 1 | . . . . . 1 . . . . . Scanalyzer . | . . . . . . . . . . . Garrison Access Hacks . | . . . . . . . . . . . Unauthorized Hacks 2 | . . . . 1 1 . . . . . Terminals . | . . . . . . . . . . . Fabricators 1 | . . . . 1 . . . . . . Haulers 1 | . . . . 1 . . . . . . Repair Stations . | . . . . . . . . . . . Recycling Units 1 | . . . . . 1 . . . . . Recyclers 1 | . . . . . 1 . . . . . Scanalyzers . | . . . . . . . . . . . Garrison Access . | . . . . . . . . . . . Data Cores Recovered 1 | . . . . . . 1 . . . . Used . | . . . . . . . . . . . Hacking Detections 23 | . . 3 3 2 3 8 2 . 1 1 Full Trace Events . | . . . . . . . . . . . Feedback Events . | . . . . . . . . . . . Feedback Blocked . | . . . . . . . . . . . Robot Schematics Acquired . | . . . . . . . . . . . Robots Built . | . . . . . . . . . . . Matter . | . . . . . . . . . . . Time . | . . . . . . . . . . . Total Robot Build Rating . | . . . . . . . . . . . Part Schematics Acquired . | . . . . . . . . . . . Parts Built . | . . . . . . . . . . . Matter . | . . . . . . . . . . . Time . | . . . . . . . . . . . Total Part Build Rating . | . . . . . . . . . . . Parts Repaired 1 | . . . . 1 . . . . . . Time 38 | . . . . 38 . . . . . . Parts Recycled . | . . . . . . . . . . . Recycled Matter . | . . . . . . . . . . . Retrieved Matter . | . . . . . . . . . . . Retrieved Components . | . . . . . . . . . . . Parts Scanalyzed . | . . . . . . . . . . . Part Schematics Acquired . | . . . . . . . . . . . Parts Damaged . | . . . . . . . . . . . Bothacking | -11 -10 -9 -8 -7 -6 -6 -6 -6 -6 -5 ------------ Run | Scr Mat Mat Mat Fac Fac Ext Cet Arc Hub Fac Used RIF Installer . | . . . . . . . . . . . Robots Hacked . | . . . . . . . . . . . Non-combat . | . . . . . . . . . . . Combat . | . . . . . . . . . . . Robot Hacks Applied . | . . . . . . . . . . . Relay Couplers Released . | . . . . . . . . . . . Robots Rewired 20 | . . . . . . 20 . . . . Allies Hacked . | . . . . . . . . . . . Hacks Repelled . | . . . . . . . . . . . Allies | -11 -10 -9 -8 -7 -6 -6 -6 -6 -6 -5 -------- Run | Scr Mat Mat Mat Fac Fac Ext Cet Arc Hub Fac Total Allies 25 | . . . . . . 25 . . . . Largest Group 14 | . . . . . . 14 7 1 . . Highest-Rated Group 429 | . . . . . . 429 321 156 . . Highest-Rated Ally 156 | . . . . . . 156 156 156 . . Total Orders . | . . . . . . . . . . . Ally Attacks 199 | . . . . . . 168 31 . . . Total Damage 4353 | . . . . . . 3470 883 . . . Kills 32 | . . . . . . 24 8 . . . Allies Corrupted . | . . . . . . . . . . . Allies Melted . | . . . . . . . . . . . Intel | -11 -10 -9 -8 -7 -6 -6 -6 -6 -6 -5 ------- Run | Scr Mat Mat Mat Fac Fac Ext Cet Arc Hub Fac Robot Analysis Total 1 | . . . . . . . . . 1 . Derelict Logs Recovered . | . . . . . . . . . . . Drone Launches . | . . . . . . . . . . . Drone Recoveries . | . . . . . . . . . . . Exploration | -11 -10 -9 -8 -7 -6 -6 -6 -6 -6 -5 ------------- Run | Scr Mat Mat Mat Fac Fac Ext Cet Arc Hub Fac Turns Passed 5637 | 41 372 709 633 812 487 1077 330 516 252 408 Spaces Moved 2903 | 34 211 361 268 393 273 534 163 260 108 298 Core 159 | 1 . . . . . . 1 . . 157 Treads . | . . . . . . . . . . . Legs 2572 | . 72 361 268 393 273 534 162 260 108 141 Wheels 172 | 33 139 . . . . . . . . . Hover . | . . . . . . . . . . . Flight . | . . . . . . . . . . . Fastest Speed 50 | 50 90 130 130 130 120 120 150 150 120 50 Average Speed 127 | 89 110 136 130 130 126 131 156 150 149 83 Slowest Speed 950 | 100 180 160 130 130 160 153 950 150 150 150 Overloaded Moves . | . . . . . . . . . . . Propulsion Burnouts . | . . . . . . . . . . . Robots Hopped . | . . . . . . . . . . . Cave-ins Triggered . | . . . . . . . . . . . Exploration Rate (%) 35 | 4 52 27 35 15 8 73 62 94 10 15 Regions Visited 10 Branch Regions 4 Pre-discovered Areas . | . . . . . . . . . . . Known Exits Taken 8 | . . 1 1 1 1 1 1 1 1 . Unknown Exits Taken 2 | 1 1 . . . . . . . . . Scrap Searched . | . . . . . . . . . . . Spaces Dug . | . . . . . . . . . . . Terrain Destroyed 28 | . . 2 3 . . 20 . 1 2 . Melee . | . . . . . . . . . . . Projectile 3 | . . . . . . . . 1 2 . AOE 25 | . . 2 3 . . 20 . . . . Terrain Rammed . | . . . . . . . . . . . Walls Destroyed . | . . . . . . . . . . . Machines Disabled . | . . . . . . . . . . . Actions | -11 -10 -9 -8 -7 -6 -6 -6 -6 -6 -5 --------- Run | Scr Mat Mat Mat Fac Fac Ext Cet Arc Hub Fac Total 4353 | 41 288 529 508 640 375 830 201 368 166 407 Wait 764 | . 10 109 201 185 48 56 . 76 18 61 Move 2893 | 33 210 360 267 392 272 533 162 259 107 298 Hop . | . . . . . . . . . . . Pick Up 85 | 2 13 10 8 9 9 17 2 5 6 4 Fast Attach 53 | 6 6 3 1 9 8 2 8 . 6 4 Attach 33 | . 2 3 5 4 4 6 1 . 4 4 Detach 2 | . . . . 2 . . . . . . Swap 34 | . 1 4 2 1 5 8 3 3 6 1 Drop 97 | . 9 13 4 13 12 16 9 6 5 10 Fire 228 | . 37 27 20 25 17 37 16 10 14 25 Melee . | . . . . . . . . . . . Ram . | . . . . . . . . . . . Kick . | . . . . . . . . . . . Crush . | . . . . . . . . . . . Escape Stasis 20 | . . . . . . 20 . . . . Rewire 144 | . . . . . . 135 . 9 . . Trap . | . . . . . . . . . . . Miscellaneous . | . . . . . . . . . . . Route ------- -11/Scrapyard -10/Materials (discovered 3 exits: *Mat / [*Min x2]) -9/Materials -8/Materials (discovered 3 exits: *Fac x3) -7/Factory (discovered 2 exits: *Fac / *Low) -6/Factory -6/Extension (discovered 2 exits: *Fac / *Cet) -6/Cetus -6/Archives (discovered 3 exits: *Fac / *Hub x2) -6/Hub_04(d) (discovered 2 exits: *Fac x2) -5/Factory History --------- Turn | Location | Event 12 | -11/Scrapyard | Discovered new exit (range 16) 42 | -11/Scrapyard | Entered Materials 126 | -10/Materials | Discovered new exit (range 16) 246 | -10/Materials | Discovered new exit (range 14) 318 | -10/Materials | Discovered new exit (range 15) 414 | -10/Materials | Entered another Materials area 414 | -9/Materials | Evolved 2 slots: Utility x2 550 | -9/Materials | Build established: Scavenger-Mutant 1004 | -9/Materials | Build established: Mutant 1076 | -9/Materials | Discovered new exit (range 15) 1121 | -9/Materials | Identified exit to Materials 1123 | -9/Materials | Entered another Materials area 1123 | -8/Materials | Evolved 2 slots: Propulsion x1, Weapon x1 1436 | -8/Materials | Build established: Skirmisher 1436 | -8/Materials | Identified exit to Factory 1756 | -8/Materials | Entered Factory 1756 | -7/Factory | Evolved 2 slots: Power x1, Utility x1 2234 | -7/Factory | Repaired Lgt. Nuclear Core 2336 | -7/Factory | Discovered new exit (range 5) 2341 | -7/Factory | Identified exit to Lower Caves 2511 | -7/Factory | Discovered new exit (range 14) 2566 | -7/Factory | Identified exit to Factory 2568 | -7/Factory | Entered another Factory area 2568 | -6/Factory | Evolved 2 slots: Utility x2 2719 | -6/Factory | Lost 3 parts (1n2u) 3041 | -6/Factory | Discovered new exit (range 13) 3054 | -6/Factory | Identified exit to Extension 3055 | -6/Factory | Entered Extension 3090 | -6/Extension | Build established: Scavenger-Gunner 3330 | -6/Extension | Door terminal overloaded 3331 | -6/Extension | Rescued a captive Derelict 3640 | -6/Extension | Spotted B-75 Beast 3647 | -6/Extension | Spotted B-75 Beast 3669 | -6/Extension | Allies destroyed B-75 Beast 3675 | -6/Extension | Allies destroyed B-75 Beast 3699 | -6/Extension | Lost 4 parts (2p1u1w) 3756 | -6/Extension | Rescued A7 3943 | -6/Extension | Rescued a captive Derelict 3945 | -6/Extension | Rescued a captive Derelict 4011 | -6/Extension | Rescued a captive Derelict 4020 | -6/Extension | Identified exit to Cetus 4063 | -6/Extension | Discovered new exit (range 10) 4105 | -6/Extension | Disrupted transfer network 4132 | -6/Extension | Entered Cetus 4132 | -6/Cetus | Accompanied by 7 allies (A7) 4137 | -6/Cetus | Acquired a Cetus Manufacturing Module code from A7 4156 | -6/Cetus | Spotted Cetus Guard 4156 | -6/Cetus | Spotted Cetus Guard 4158 | -6/Cetus | Spotted Cetus Guard 4161 | -6/Cetus | Spotted Cetus Guard 4163 | -6/Cetus | Allies destroyed Cetus Guard 4169 | -6/Cetus | Destroyed Cetus Guard 4179 | -6/Cetus | Allies destroyed Cetus Guard 4183 | -6/Cetus | Destroyed Cetus Guard 4265 | -6/Cetus | Build established: Scavenger-Skirmisher 4323 | -6/Cetus | Cetus Manufacturing Module disabled 4335 | -6/Cetus | Failed to start Cetus Manufacturing Module 4440 | -6/Cetus | Discovered new exit (range 15) 4461 | -6/Cetus | Identified exit to Archives 4462 | -6/Cetus | Entered Archives 4462 | -6/Archives | Accompanied by 1 ally (A7) 4675 | -6/Archives | Unable to access archive contents 4721 | -6/Archives | Unable to access archive contents 4736 | -6/Archives | Unable to access archive contents 4739 | -6/Archives | Discovered new exit (range 16) 4753 | -6/Archives | Unable to access archive contents 4757 | -6/Archives | Discovered new exit (range 14) 4775 | -6/Archives | Identified exit to Factory 4832 | -6/Archives | Identified exit to Hub_04(d) 4864 | -6/Archives | Discovered exit to Hub_04(d) (range 14) 4978 | -6/Archives | Entered Hub_04(d) 5035 | -6/Hub_04(d) | Discovered exit to Factory (range 16) 5092 | -6/Hub_04(d) | Core integrity fell below 50% 5150 | -6/Hub_04(d) | Lost 7 parts (1p6w) 5226 | -6/Hub_04(d) | Discovered exit to Factory (range 13) 5230 | -6/Hub_04(d) | Entered Factory 5230 | -5/Factory | Evolved 2 slots: Propulsion x1, Utility x1 5585 | -5/Factory | Lost 8 parts (2n2u4w) 5614 | -5/Factory | Core integrity fell below 50% 5626 | -5/Factory | Core integrity fell below 20% 5638 | -5/Factory | Destroyed by S-27 Virus with Autogun Last Messages --------------- 05588_ Slug penetrates Wall. 05591_ System corrupted: Heat flow error (+102). 05592_ Penetrated by Slug. 05593_ K-01 Serf cleans the Pressure Siphon. 05601_ K-01 Serf cleans the Fusion Modulator. 05604_ Penetrated by Slug. 05610_ Core Analyzer destroyed. 05611_ K-01 Serf cleans the Fabricator. 05614_ U-05 Engineer lays Concrete. 05615_ K-01 Serf cleans the Fabricator. 05615_ Penetrated by Slug. 05621_ Slug penetrates Wall. 05622_ System corrupted: Heat flow error (+242). 05624_ Penetrated by Slug. 05625_ U-05 Engineer lays Concrete. 05626_ Penetrated by Slug. 05630_ U-05 Engineer lays Concrete. 05634_ Slug penetrates Wall. 05638_ Acquired Field Propulsion Drive. [Achievement: Achiever] Map ----- +----------------------------------------------------+ | ??????????????????????########### #??????????? | | ????????????????????? #??????????? | | ????????????????????? #??????????? | | ?????????????????????? #??????????? | | ?????????????????????? #??????????? | | ?????????????????????? #??????????? | | ???????????????????????### #??????????? | | ?????????????????????????# ############ | | ?????????????????????????# | | ?????????????????????????# | | ?????????????????????????# | | ?????????????????????????# | | ?????????????????????????# | | ?????????????????????????# R ##########+######+# | | ??????????????????######## #?????????????????? | | ??????????????????# #?????????????????? | | ??????????????????# #?????????????????? | | ??????????????????# #?????????????????? | | ??????????????????+ #?????????????????? | | ??????????????????# #?????????????????? | | ??????????????????# ###s######???????????????? | | ??????????????????# # #???????????????? | | ???????????????? ?#! """ #???????????????? | | ??????????????? ??# """ #???????????????? | | ?????????????????? ???# """ #???????????????? | | ????????????????????????#@ #???????????????? | | ????????????????????????# """ ! #???????????????? | | ????????????????????????# """ #???????????????? | | ????????????????????????# """ #???????????????? | | ????????????????????????# #???????????????? | | ????????????????????????#######+##???????????????? | | ?????????????????????????????????????????????????? | | ?????????????????????????????????????????????????? | | ?????????????????????????????????????????????????? | | ?????????????????????????????????????????????????? | | ?????????????????????????????????????????????????? | | ?????????????????????????????????????????????????? | | ?????????????????????????????????????????????????? | | ?????????????????????????????????????????????????? | | ?????????????????????????????????????????????????? | | ?????????????????????????????????????????????????? | | ?????????????????????????????????????????????????? | | ?????????????????????????????????????????????????? | | ?????????????????????????????????????????????????? | | ?????????????????????????????????????????????????? | | ?????????????????????????????????????????????????? | | ?????????????????????????????????????????????????? | | ?????????????????????????????????????????????????? | | ?????????????????????????????????????????????????? | | ?????????????????????????????????????????????????? | +----------------------------------------------------+ Best States ------------- Heat Dissipation 78 Energy Generation 31 Energy Capacity 465 Matter Stores 300 Matter Capacity 300 Sight Range 16 Robot Scan Range 16 Terrain Scan Density 10 EM Shielding 3 Armor Coverage 375 Resistance: EX 25 Core Shielding 20 Evasion (%) 50 Melee Accuracy 6 Core Analysis 6 Offensive Hacking 10 Item Schematics ----------------- None Robot Schematics ------------------ None Fabricated ------------ Nothing Alien Tech Used ----------------- None Achievements -------------- A New Friend Achiever Backstab Just Shoot The Terminal Prison Break Project G-00 The More The Merrier Challenges ------------ None Game ------ Seed SalvageDirtySystem Manual? 0 Play Time 01:37:30 Cumulative 12.5 hours Start 2021.07.01 @ 17:25:25 End 2021.07.01 @ 19:12:34 Sessions 1 Manual Loads 0 Difficulty Rogue Special Mode None Game No. 15 Rogue 15 Adventurer 0 Explorer 0 Win Type - Total 0 Types 0/0/0/0/0/0/0/0/0 Lore% 24 Gallery% 27 Achievement% 26 Wizard Run 0 Options --------- ASCII 0 Keyboard 0 Movement Mouse Keybinds 0 Fullscreen 2 Font 18/SmallcapsGlow Map View 76x50 Tactical HUD 1 Map Filters NONE Filters NONE Steam 1 RUN: 35be1e16-a8fe-4266-9389-286d1cbb782e